Cogmind - Beta 17.1 @@@ ROGUE MODE // 2026.09.22 @ 22:24:53 Player: Lazz Result: Destroyed by YI-UF0 with YI-UF0's Doublenader Performance ------------- Evolutions (1) 500 Regions Visited (3) 600 Robots Destroyed (42) 210 Value Destroyed (863) 863 Prototype IDs (3) 60 Alien Tech Used (0) 0 Bonus (6000) 6000 TOTAL SCORE: 8233 Bonus ------- Prayed to X0-1V1 5000 Major X0-1V1 Interference 1000 Cogmind --------- Core Integrity 0/400 Matter 429/700 Energy 97/100 System Corruption 0% Temperature Cool (0) Movement Core (350) Ox6 Location -9/Mines Parts ------- > --- POWER (1) -------- (None) > --- PROPULSION (2) --- (None) > --- UTILITY (4) ------ Large Storage Unit X0-1V1's Piety Tracker > --- WEAPON (2) ------- (None) > --- INVENTORY (15) --- Compact Wheel High-capacity Battery (250) Rocket Launcher Mining Laser Peak State ------------ > --- POWER ------------ Light Nuclear Core > --- PROPULSION ------- Light Treads Light Treads > --- UTILITY ---------- Large Storage Unit Structural Scanner Seismic Detector X0-1V1's Piety Tracker > --- WEAPON ----------- Medium Laser Light Assault Rifle > --- INVENTORY -------- Light Treads Compact Wheel Compact Wheel Small Laser Particle Gun Grenade Launcher [Rating: 23] Favorites ----------- Power Light Nuclear Core Engine Light Ion Engine Power Core Light Nuclear Core Propulsion Light Treads Treads Light Treads Wheel Compact Wheel Utility Large Storage Unit Device Structural Scanner Storage Large Storage Unit Weapon Medium Laser Energy Gun Medium Laser Ballistic Gun Light Assault Rifle Launcher Grenade Launcher Build | -11 -10 -9 -9 ------- Run | Yrd Mat Mat Min Slots Evolved 2 | . . 2 . Power . | . . . . Propulsion . | . . . . Utility 2 | . . 2 . Weapon . | . . . . Parts Attached 29 | 7 8 13 1 Power 4 | 1 1 2 . Engine 3 | 1 . 2 . Core 1 | . 1 . . Reactor . | . . . . Propulsion 8 | 2 2 4 . Treads 6 | 2 2 2 . Leg . | . . . . Wheel 2 | . . 2 . Hover . | . . . . Flight . | . . . . Utility 7 | 2 3 2 . Device 5 | 1 2 2 . Storage 2 | 1 1 . . Processor . | . . . . Hackware . | . . . . Protection . | . . . . Artifact . | . . . . Weapon 10 | 2 2 5 1 Energy Gun 6 | 2 1 3 . Energy Cannon . | . . . . Ballistic Gun 3 | . 1 1 1 Ballistic Cannon . | . . . . Launcher 1 | . . 1 . Special Weapon . | . . . . Impact Weapon . | . . . . Slashing Weapon . | . . . . Piercing Weapon . | . . . . Special Melee Weapon . | . . . . Unidentified Prototypes 1 | . 1 . . Parts Lost 24 | . 5 12 7 Power 4 | . 1 2 1 Propulsion 6 | . 1 3 2 Utility 4 | . 1 3 . Weapon 10 | . 2 4 4 Highest Loss Streak 7 | . 3 7 7 To Critical Strikes . | . . . . Average Backups 5 | . 5 5 6 Power . | . . . . Propulsion 1 | . 2 2 1 Utility . | . 1 . 1 Weapon 2 | . 1 3 4 Tool/Special . | . . . . Unused Backups 2 | . . . 2 Power . | . . . . Propulsion . | . . . . Utility 1 | . . . 1 Weapon 1 | . . . 1 Tool/Special . | . . . . Average Slot Usage (%) 86 | . 88 85 70 Engine 5 | . 5 3 10 Core 7 | . 8 6 . Treads 21 | . 24 13 21 Wheel 1 | . . 4 . Device 12 | . 7 27 11 Storage 13 | . 14 11 11 Energy Gun 14 | . 16 14 . Ballistic Gun 10 | . 11 5 16 Peak Build Rating 23 | 9 21 23 22 Average Rating 11 | 5 7 20 20 On Entrance 12 | . 9 21 20 Avg Prop Armor Cover (%) . | . . . . Naked Turns . | . . . . Heaviest Build 34 | 13 29 33 34 Greatest Support 40 | 40 40 40 40 Greatest Overweight (x) 1 | . 1 1 . Average Overweight (x) . | . . . . Largest Inventory Capacity 15 | 8 15 15 15 Average Capacity 12 | 7 12 15 15 Most Carried 8 | 2 8 8 7 Average Carried 5 | . 5 5 5 Final Capacity 15 | 8 15 15 15 Final Carried 8 | 2 8 6 4 Class Distribution -------------------- 88% | Mutant 11% | Scavenger-Mutant Dominant Class ---------------- Mutant | -10/Materials Mutant | -9/Materials Scavenger-Mutant | -9/Mines Resources | -11 -10 -9 -9 ----------- Run | Yrd Mat Mat Min Matter Collected 695 | 270 94 232 99 Remotely . | . . . . Salvage Created 1241 | 133 565 487 56 Parts 83 | 10 36 26 11 Haulers Intercepted 1 | . 1 . . Recyclers Shooed . | . . . . Parts Field Recycled . | . . . . Retrieved Matter . | . . . . Parts Self-Destructed . | . . . . Prevented . | . . . . Parts Restored . | . . . . Kills | -11 -10 -9 -9 ------- Run | Yrd Mat Mat Min Combat Hostiles Destroyed 30 | . 14 12 4 Guns 22 | . 11 7 4 AOE 5 | . 2 3 . Classes Destroyed 10 | 3 5 2 . Worker 3 | 1 2 . . Builder 1 | . 1 . . Tunneler 2 | 2 . . . Hauler 1 | . 1 . . Recycler 2 | 1 . 1 . Mechanic 2 | . 1 1 . Watcher 1 | . . 1 . Swarmer 14 | . 6 4 4 Grunt 11 | . 8 3 . Sentry 5 | . . 5 . Best Kill Streak 5 | 2 4 5 4 Combat Bots Only 5 | . 3 5 4 Max Kills in Single Turn 3 | 1 2 3 1 Gunslinging . | . . . . Exploded 1 | . 1 1 . Melee . | . . . . Uniques/NPCs Destroyed . | . . . . Combat | -11 -10 -9 -9 -------- Run | Yrd Mat Mat Min Hostile Shots Fired 197 | . 83 81 33 Missed 42 | . 22 16 4 Hits 155 | . 61 65 29 Projectile 155 | . 61 65 29 AOE 18 | . . . 18 Critical Strikes 7 | . 2 5 . Damage Taken 2302 | . 648 986 668 Core 523 | . 119 212 192 Absorbed by Shields . | . . . . Core Remaining (%) 76 | 100 52 . . Volleys Fired 109 | 9 53 36 11 Largest 2 | 2 2 2 2 Hottest 115 | 90 80 115 60 Shots Fired 204 | 18 103 64 19 Gun 202 | 18 103 62 19 Cannon . | . . . . Launcher 2 | . . 2 . Special . | . . . . Kinetic 61 | . 31 15 15 Thermal 91 | 9 31 47 4 Explosive 2 | . . 2 . Electromagnetic 50 | 9 41 . . Robot Hit Streak 17 | 5 10 17 13 Robot Miss Streak 5 | 3 5 3 1 Penetration Max . | . . . . Secondary Targets 1 | . 1 . . Max Gunslinging Chain 1 | . 1 . . Shots Hit Robots 144 | 11 70 47 16 Core Hits 60 | 5 30 19 6 Critical Kills 1 | . 1 . . Critical Parts Destroyed . | . . . . Critical Strikes 11 | 1 5 5 . Burn 9 | 1 3 5 . Destroy 1 | . 1 . . Corrupt 1 | . 1 . . Melee Attacks . | . . . . Impact . | . . . . Slashing . | . . . . Piercing . | . . . . Sneak Attacks . | . . . . Combat Hostiles . | . . . . Follow-up Attacks . | . . . . Damage Inflicted 2428 | 187 924 1103 214 Guns 1776 | 145 827 590 214 Cannons . | . . . . Explosions 652 | 42 97 513 . Melee . | . . . . Ramming . | . . . . Kinetic 473 | . 174 127 172 Thermal 996 | 104 387 463 42 Explosive 513 | . . 513 . Electromagnetic 446 | 83 363 . . Impact . | . . . . Slashing . | . . . . Piercing . | . . . . Highest Corruption . | . . . . Average Corruption . | . . . . Corruption Purged . | . . . . Corruption Blocked . | . . . . Overload Shots . | . . . . Overflow Damage 119 | . . 119 . Projectiles . | . . . . Explosions 119 | . . 119 . Melee . | . . . . Knockbacks . | . . . . Impact . | . . . . Kinetic . | . . . . Secondary . | . . . . Self-Inflicted Damage 102 | . . 102 . Shots 3 | . . 3 . Rammed . | . . . . Targets Rammed . | . . . . Kicked . | . . . . Crushed . | . . . . Highest Temperature 401 | 180 166 401 4 Average Temperature 75 | 77 61 97 3 Received Heat Transfer 672 | . 297 375 . Effects 1 | . . 1 . Shutdowns 1 | . . 1 . Siege Activations . | . . . . Martial Activations . | . . . . Shielding Activations . | . . . . Robots Disrupted . | . . . . Combat Hostiles . | . . . . Robots Corrupted 1 | . 1 . . Combat Hostiles 1 | . 1 . . Parts Fried . | . . . . Impact Corruptions . | . . . . Robots Melted 2 | . . 2 . Combat Hostiles 2 | . . 2 . Parts Melted 11 | . 1 10 . Heat Transferred 3202 | 309 1223 1570 100 Parts Sabotaged . | . . . . Parts Stolen . | . . . . Parts Stripped . | . . . . Power Chain Reactions 3 | 1 2 . . Alert | -11 -10 -9 -9 ------- Run | Yrd Mat Mat Min Maximum Alert Level . | . . . . Low Security (%) 100 | 100 100 100 100 Level 1 . | . . . . Level 2 . | . . . . Level 3 . | . . . . Level 4 . | . . . . Level 5 . | . . . . High Security . | . . . . Max Security . | . . . . Peak Influence 174 | 10 110 174 107 Initial 47 | . . . 47 Average 35 | 1 22 73 61 Influence Increases 988 | 20 445 433 90 Destroy 0b10 Robot/C 600 | . 280 240 80 Destroy 0b10 Robot/NC 60 | 20 25 15 . Destroy Leader 144 | . 62 72 10 Successful Hack 34 | . 26 8 . Disable Machine 30 | . 15 15 . Destroy Structure 30 | . 7 23 . Partial Spotted 15 | . 15 . . Lose Combat Pursuer 75 | . 15 60 . Influence Decreases 981 | 20 445 310 206 Entered New Map 76 | . . . 76 Time Decay 595 | 20 315 200 60 Lost Part 230 | . 50 110 70 Purge Threat 80 | . 80 . . Squads Dispatched 3 | . 3 . . Investigation 2 | . 2 . . Extermination . | . . . . Reinforcement 1 | . 1 . . Assault . | . . . . Garrison . | . . . . Intercept . | . . . . Searches Triggered . | . . . . Construction Impeded . | . . . . Haulers Reinforced . | . . . . Active Scanning Responses . | . . . . Cargo Convoy Interrupts . | . . . . Stealth | -11 -10 -9 -9 --------- Run | Yrd Mat Mat Min Distress Signals . | . . . . Communications Jammed . | . . . . Distress Signals . | . . . . Times Spotted 51 | . 31 15 5 Peak Tracking Total 7 | . 4 7 4 Tactical Retreats 2 | . 1 1 . Traps | -11 -10 -9 -9 ------- Run | Yrd Mat Mat Min Traps Triggered 2 | . 2 . . Indirectly . | . . . . Trap Hack Attempts . | . . . . Triggered . | . . . . Disarmed . | . . . . Reprogrammed . | . . . . Reused . | . . . . Traps Extracted . | . . . . Installed . | . . . . Triggered . | . . . . Machines | -11 -10 -9 -9 ---------- Run | Yrd Mat Mat Min Machines Disabled 2 | . 1 1 . Max in Single Turn 1 | . 1 1 . Machines Repaired . | . . . . Machines Dismantled . | . . . . Machines Sabotaged . | . . . . Overloaded Fab Kills . | . . . . Hacking | -11 -10 -9 -9 --------- Run | Yrd Mat Mat Min Machines Accessed 11 | . 8 3 . Terminals 10 | . 8 2 . Fabricators . | . . . . Repair Stations . | . . . . Recycling Units . | . . . . Scanalyzers 1 | . . 1 . Garrison Access . | . . . . Total Hacks 30 | . 21 9 . Successful 19 | . 13 6 . Failed 11 | . 8 3 . Catastrophic 1 | . 1 . . Database Lockouts . | . . . . Manual 17 | . 14 3 . Terminals 24 | . 21 3 . Fabricators . | . . . . Repair Stations . | . . . . Recycling Units . | . . . . Scanalyzers 6 | . . 6 . Garrison Access . | . . . . Terminal Hacks 6 | . 6 . . Prototype ID Bank 1 | . 1 . . Unreport Threat 1 | . 1 . . Locate Traps 1 | . 1 . . Hauler Manifests 1 | . 1 . . Registered Components 1 | . 1 . . Zone Layout 1 | . 1 . . Fabricator Hacks . | . . . . Repair Station Hacks . | . . . . Recycling Unit Hacks . | . . . . Scanalyzer 4 | . . 4 . Retrieve Study 4 | . . 4 . Garrison Access Hacks . | . . . . Unauthorized Hacks 9 | . 7 2 . Terminals 9 | . 7 2 . Botnet 1 | . 1 . . Skim 8 | . 6 2 . Fabricators . | . . . . Repair Stations . | . . . . Recycling Units . | . . . . Scanalyzers . | . . . . Garrison Access . | . . . . Data Cores Recovered . | . . . . Used . | . . . . Hacking Detections 10 | . 8 2 . Full Trace Events 2 | . 2 . . Feedback Events . | . . . . Feedback Blocked . | . . . . Robot Schematics Acquired . | . . . . Robots Built . | . . . . Authchips . | . . . . Time . | . . . . Total Robot Build Rating . | . . . . Part Schematics Acquired . | . . . . Parts Built . | . . . . Authchips . | . . . . Time . | . . . . Total Part Build Rating . | . . . . Part Studies Acquired 4 | . . 4 . Parts Repaired . | . . . . Time . | . . . . Parts Recycled . | . . . . Recycled Matter . | . . . . Retrieved Matter . | . . . . Retrieved Components . | . . . . Parts Scanalyzed . | . . . . Part Schematics Acquired . | . . . . Parts Damaged . | . . . . Bothacking | -11 -10 -9 -9 ------------ Run | Yrd Mat Mat Min Used RIF Installer . | . . . . Robots Hacked . | . . . . Non-combat . | . . . . Combat . | . . . . Robot Hacks Applied . | . . . . Relay Couplers Released . | . . . . Fabnet Peak Effective % . | . . . . Robots Rewired . | . . . . Allies Hacked . | . . . . Hacks Repelled . | . . . . Allies | -11 -10 -9 -9 -------- Run | Yrd Mat Mat Min Total Allies . | . . . . Largest Group . | . . . . Highest-Rated Group . | . . . . Highest-Rated Ally . | . . . . Total Orders . | . . . . Ally Attacks . | . . . . Total Damage . | . . . . Kills . | . . . . Allies Corrupted . | . . . . Allies Melted . | . . . . X0-1V1 Amusement Gains 23 | . 8 15 . Average Entertainment 7 | . 7 6 13 Good Acts 2 | . . 1 1 Bad Acts 3 | . . 3 . Intel | -11 -10 -9 -9 ------- Run | Yrd Mat Mat Min Active Infowar (turns) 1197 | 25 746 426 . Terrain 245 | 25 220 . . Structural 951 | . 526 425 . Seismic 420 | . . 420 . Robot Analysis Total . | . . . . Derelict Logs Recovered 1 | . . . 1 Drone Launches . | . . . . Drone Recoveries . | . . . . Exploration | -11 -10 -9 -9 ------------- Run | Yrd Mat Mat Min Turns Passed 2225 | 126 1430 532 137 Spaces Moved 1052 | 56 699 233 64 Core 4 | 4 . . . Treads 994 | 52 699 179 64 Legs . | . . . . Wheels 54 | . . 54 . Hover . | . . . . Flight . | . . . . Fastest Speed 50 | 50 160 90 160 Average Speed 169 | 152 176 155 160 Slowest Speed 240 | 160 240 200 160 Overloaded Moves . | . . . . Propulsion Burnouts . | . . . . Robots Hopped . | . . . . Potential Cave-ins . | . . . . Cave-ins Triggered . | . . . . Exploration Rate (%) 39 | 4 96 27 32 Regions Visited 3 Branch Regions 1 Pre-discovered Areas . | . . . . Known Exits Taken . | . . . . Unknown Exits Taken 3 | 1 1 1 . Scrap Searched 1 | . . . 1 Spaces Dug . | . . . . Terrain Destroyed 29 | . 6 23 . Melee . | . . . . Projectile . | . . . . AOE 29 | . 6 23 . Terrain Rammed . | . . . . Walls Destroyed . | . . . . Machines Disabled . | . . . . Actions | -11 -10 -9 -9 --------- Run | Yrd Mat Mat Min Total 1290 | 75 795 339 81 Wait 75 | 2 23 48 2 Move 1049 | 55 698 232 64 Hop . | . . . . Pick Up 17 | 2 8 6 1 Fast Attach 18 | 7 6 5 . Attach 14 | . 3 8 3 Detach 1 | . . 1 . Swap 3 | . 2 1 . Drop 4 | . 2 2 . Fire 109 | 9 53 36 11 Melee . | . . . . Ram . | . . . . Kick . | . . . . Crush . | . . . . Escape Stasis . | . . . . Rewire . | . . . . Trap . | . . . . Miscellaneous . | . . . . Route ------- -11/Scrapyard -10/Materials (discovered 5 exits: *Mat x3 / [*Min] / [*Sub]) -9/Materials (discovered 2 exits: [*Mat] / [*Min]) -9/Mines History --------- Turn | Location | Event 30 | -11/Scrapyard | Discovered new exit (range 16) 127 | -11/Scrapyard | Entered Materials 300 | -10/Materials | Build established: Mutant 405 | -10/Materials | Lost 3 parts (1u2w) 445 | -10/Materials | Discovered new exit (range 4) 771 | -10/Materials | Discovered new exit (range 8) 865 | -10/Materials | Discovered new exit (range 15) 1255 | -10/Materials | Discovered new exit (range 16) 1481 | -10/Materials | Discovered new exit (range 7) 1491 | -10/Materials | Prayed at D.C.S.S. Altar Unit 1557 | -10/Materials | Entered another Materials area 1557 | -9/Materials | Evolved 2 slots: Utility x2 1758 | -9/Materials | X0-1V1 vaporized surrounding terrain (radius 15) 1762 | -9/Materials | Discovered new exit (range 11) 1911 | -9/Materials | Lost 3 parts (1p1n1w) 1992 | -9/Materials | Core integrity fell below 50% 2017 | -9/Materials | Discovered new exit (range 15) 2024 | -9/Materials | Lost 7 parts (1p1n3u2w) 2089 | -9/Materials | Entered Mines 2221 | -9/Mines | Core integrity fell below 20% 2226 | -9/Mines | Destroyed by YI-UF0 with YI-UF0's Doublenader Last Messages --------------- 02164_ K-01 Serf collects debris. 02166_ Acquired 40 matter. 02167_ R-06 Scavenger collects Lgt. Ion Engine. 02173_ Acquired derelict log, extracted data. Data stored: Storage entrances (x1). 02180_ K-01 Serf collects debris. 02205_ U-05 Engineer destroyed. 02210_ Hvy. Assault Rifle destroyed. 02214_ Lgt. Treads+ destroyed. 02216_ YI-UF0: "Everyone has the same god; only people differ." 02216_ Hvy. Assault Rifle destroyed. 02218_ Imp. Ion Engine destroyed. 02221_ The unstable cave ceiling collapses. 02222_ Lgt. Assault Rifle destroyed. 02223_ The unstable cave ceiling collapses. 02226_ U-05 Engineer lays Concrete. 02226_ Lgt. Treads+ destroyed. 02226_ Sml. Laser destroyed. 02226_ X0-1V1 howls with laughter! Map ----- +----------------------------------------------------+ | | | | | | | | | | | | | | | | | | | | | | | | | | | | | ?????????????????????????????????????????????????? | | ?????????????????????????????????????????????????? | | ?????????????????????????????????????????????????? | | ????????????????###??????????????????????????????# | | ????????????????# ???????????????????????####??# | | ????????????????# ???????###???????????## ### | | ????????????????? ####### ####????????# | | ??????????? #### ##????????# | | ??????????? #????????## | | ??????????" # ## #?????## | | ?????????? ##???## | | ?????????? g @ # #?? ???# | | ?????????? #?? ??# | | ?????????? # ##?# #?# | | ??????????? # # ##??# #?## ## | | ??????????? # ?## #???# #??# #?# | | ???????????????# ????## #???# #??## #??# | | ???????????????# ?????## #???# #???## #??## | | ?????????????????????## ##??# #????# #?### | | ?????????????????????# u ##?# #????# ### | | ?????????????????????## #?# ###### ## | | ??????????????????????### #?# *[ | | ????????????????????????## ### ######### | | ????????????????????????## k #???????# | | ????????????????????????# #???????## | | ???????????????????# ## #####????????## | | ???????????????????# #?## ##?????????????## | | ???????????????????## #???####???????????????# | | ????????????????????######???????????????????????? | | ?????????????????????????????????????????????????? | | ?????????????????????????????????????????????????? | | ?????????????????????????????????????????????????? | | ????????????????????????????????????????????????? | | ?????????????????????????????????????????????????# | | ?????????????????????????????????????????????????# | | ?????????????????????????????????????????????????? | +----------------------------------------------------+ Best States ------------- Heat Dissipation 28 Energy Generation 14 Energy Capacity 265 Matter Stores 432 Matter Capacity 700 Sight Range 16 Terrain Scan Range 16 Terrain Scan Density 10 Evasion (%) 42 Recoil Reduction 2 Item Schematics ----------------- None Robot Schematics ------------------ None Fabricated ------------ Nothing Repaired ---------- Nothing Studied --------- Lgt. Treads | -9/Materials | Hacked Particle Gun | -9/Materials | Hacked Com. Wheel | -9/Materials | Hacked Grenade Launcher | -9/Materials | Hacked Alien Tech Used ----------------- None Achievements -------------- None Challenges ------------ None Game ------ Seed IntegrityVoltaicWartreads Manual? 0 Play Time 00:20:20 Cumulative 323.5 hours Start 2026.09.22 @ 22:03:27 End 2026.09.22 @ 22:24:53 Sessions 1 Manual Loads 0 Difficulty Rogue Special Mode None Game No. 400 Rogue 400 Adventurer 0 Explorer 0 Win Type - Total 11 Types 8/0/1/1/0/0/0/1/0/0 Lore% 82 Gallery% 70 Achievement% 60 Wizard Run 0 Options --------- Layout 2 ASCII 0 Keyboard 0 Movement Mouse Keybinds 0 Fullscreen 1 Font 16/SmallcapsGlow Map View 50x49 Zoom Use 6% Tactical HUD 1 Map Filters NONE Filters NONE Steam SD RUN: 7eb9fd89-f017-4fb7-b653-4467e4a4503a